[Event "New York Summer GM-A 2022"]
[Site "New York"]
[Date "2022.07.09"]
[Round "3.4"]
[White "Saric, Ante"]
[Black "Ostrovskiy, Aleksandr"]
[Result "1-0"]
[ECO "E11"]
[WhiteElo "2510"]
[BlackElo "2392"]
[Annotator "TA"]
[PlyCount "117"]
[EventDate "2022.07.08"]
[EventType "tourn"]
[EventCountry "USA"]
[SourceTitle "playchess.com"]
[Source "ChessBase"]
[SourceQuality "1"]
[TimeControl "5400+30"]

{[%evp 10,117,30,16,22,21,29,26,27,0,0,7,13,0,0,8,11,-4,0,0,31,0,1,12,22,0,20,14,16,8,14,7,18,14,16,1,4,7,7,3,13,0,18,18,14,29,20,16,31,33,26,2,18,12,50,47,44,46,36,46,39,37,116,126,141,139,162,129,148,153,203,197,184,177,275,268,372,239,253,230,389,386,460,468,586,569,593,591,968,615,608,582,603,592,591,604,935,930,911,907,4076,2348,29967,29968,29979,29980,29980,29981,29975,29974]} 1. d4 {[%emt 0:00:04]} Nf6 {[%emt 0:03:28]} 2. Nf3 {[%emt 0:00:06]} e6 {[%emt 0:00:48]} 3. c4 {[%emt 0:00:05]} Bb4+ {[%emt 0:00:16]} 4. Nbd2 {[%emt 0:00:06]} O-O {[%emt 0:00:56]} 5. a3 {[%emt 0:00:04]} Be7 {[%emt 0:00:06][%cal Bb4e7,Be7f6,Bf6e5][%mdl 32]} 6. e4 {[%emt 0:00:04]} d6 {[%emt 0:00:06] E11: Bogo-Indian.} 7. Be2 $1 {[%emt 0:00:28] 7.Be2 is better than 7.Bd3.} Nfd7 {[%emt 0:00:45]} 8. b4 {[%emt 0:03:19]} e5 {[%emt 0:01:52] White has an edge.} 9. Bb2 {[%emt 0:00:12]} exd4 {[%emt 0:03:10]} 10. Nxd4 {[%emt 0:00:24]} Bf6 {[%emt 0:00:38] [#] ...c5 is the strong threat.} 11. Qb3 $146 {[%emt 0:04:38]} ({Predecessor:} 11. Qc2 a5 12. O-O axb4 13. axb4 Rxa1 14. Rxa1 Na6 15. b5 Nac5 16. N4b3 Re8 17. Bxf6 Qxf6 {½-½ (44) Esipenko,A (2523)-Matlakov,M (2730) Sochi 2017}) 11... Re8 {[%emt 0:03:40]} 12. O-O {[%emt 0:04:00]} Nc6 {[%emt 0:04:34]} 13. Nc2 {[%emt 0:02:53]} a5 {[%emt 0:13:55]} 14. Rfe1 {[%emt 0:10:20]} Be5 {[%emt 0:07:40]} 15. Bf1 {[%emt 0:04:03]} Qf6 {[%emt 0:08:53]} 16. Rab1 {[%emt 0:03:20]} axb4 {[%emt 0:04:56]} 17. axb4 {[%emt 0:00:26]} Nd4 {[%emt 0:17:39]} 18. Nxd4 {[%emt 0:02:14]} Bxd4 {[%emt 0:00:10]} 19. Bxd4 {[%emt 0:00:54]} Qxd4 {[%emt 0:00:07]} 20. Rbd1 {[%emt 0:00:50]} Qb6 {[%emt 0:02:16]} 21. Qc3 {[%emt 0:23:12]} Ne5 {[%emt 0:09:36]} 22. h3 {[%emt 0:07:10]} h6 {[%emt 0:02:00]} 23. Ra1 {[%emt 0:03:21]} Rxa1 {[%emt 0:06:02]} 24. Rxa1 {[%emt 0:00:04]} Bd7 {[%emt 0:02:53]} 25. Nb3 {[%emt 0:07:51]} Nc6 {[%emt 0:02:11][%cal Be5c6,Bc6d8,Bd8e6,Be6c7][%mdl 32]} (25... Ng6 $5 {[%cal Re8e4]}) 26. b5 {[%emt 0:00:47]} Nd8 {[%emt 0:00:28]} 27. c5 {[%emt 0:04:18]} dxc5 {[%emt 0:00:07]} 28. Qxc5 {[%emt 0:00:38]} Ne6 {[%emt 0:04:46]} 29. Qxb6 {[%emt 0:02:05]} cxb6 {[%emt 0:00:01]} 30. Rd1 {[%emt 0:02:56]} Bc8 {[%emt 0:00:21]} 31. Rd6 {[%emt 0:00:38]} Nc7 {[%emt 0:00:29]} 32. Nd2 {[%emt 0:01:40]} Kf8 {[%emt 0:01:01]} 33. Rxb6 {[%emt 0:05:18]} Rd8 {[%emt 0:00:34]} 34. Nc4 {[%emt 0:00:09]} Ke7 {[%emt 0:00:17] [#] Against Nd6. Strongly threatening ...Na8.} 35. e5 $1 {[%emt 0:00:11]} Na8 {[%emt 0:00:46] White leaves nothing to chance now.} (35... Ne8 $14) 36. Rd6 $16 {[%emt 0:00:07]} Be6 {[%emt 0:00:29]} 37. f4 {[%emt 0:02:51] White is more active.} Nc7 {[%emt 0:00:28]} 38. Rb6 {[%emt 0:03:52]} Bd5 {[%emt 0:00:24]} 39. Nd6 {[%emt 0:01:21]} Rb8 {[%emt 0:00:35]} (39... Rd7 $16 {was called for.} 40. g3 (40. Nxb7 Na8 $17) 40... Na8 41. Nf5+ Kf8) 40. Nf5+ $18 {[%emt 0:00:21]} Kf8 {[%emt 0:00:02]} 41. Rd6 {[%emt 0:00:20] Black must now prevent b6.} b6 {[%emt 0:01:01]} (41... Ba2 {keeps fighting.} 42. b6 Ne6) 42. g4 {[%emt 0:02:01]} Be4 {[%emt 0:00:31]} 43. Ng3 {[%emt 0:00:34]} Bd5 {[%emt 0:00:22]} 44. Kf2 {[%emt 0:00:47]} g6 $2 {[%emt 0:00:16]} (44... Ba2 45. Bd3 Ke8) 45. f5 {[%emt 0:00:18]} Ra8 {[%emt 0:00:53]} 46. Rxb6 {[%emt 0:00:34]} Ra3 {[%emt 0:00:13]} 47. Rb8+ {[%emt 0:00:35]} Ke7 {[%emt 0:00:05]} 48. b6 {[%emt 0:00:30]} Ne8 {[%emt 0:01:12]} 49. f6+ {[%emt 0:00:09]} Nxf6 {[%emt 0:00:03]} 50. exf6+ {[%emt 0:00:07]} Kxf6 {[%emt 0:00:01]} 51. Be2 {[%emt 0:00:43] Inhibits Rf3+.} Rb3 {[%emt 0:00:07]} 52. Nf1 {[%emt 0:00:31]} Kg5 {[%emt 0:01:28]} 53. Ne3 {[%emt 0:00:28]} Be4 {[%emt 0:00:15]} 54. Bf3 {[%emt 0:00:54]} f5 {[%emt 0:00:43]} 55. gxf5 {[%emt 0:00:44]} gxf5 {[%emt 0:00:01]} 56. Bxe4 {[%emt 0:00:18] White mates.} fxe4 {[%emt 0:00:01]} 57. b7 {[%emt 0:00:19]} Kh4 {[%emt 0:00:19]} 58. Nc4 {[%emt 0:00:46]} Kxh3 {[%emt 0:00:24]} 59. Na5 {[%emt 0:00:14] Weighted Error Value: White=0.15 (very precise) /Black=0.23 (precise)} 1-0

[Event "New York Summer GM-A 2022"]
[Site "New York"]
[Date "2022.07.09"]
[Round "3.5"]
[White "Dragun, Kamil"]
[Black "Song, Michael"]
[Result "1-0"]
[ECO "B30"]
[WhiteElo "2563"]
[BlackElo "2409"]
[Annotator "TA"]
[PlyCount "67"]
[EventDate "2022.07.08"]
[EventType "tourn"]
[EventCountry "USA"]
[SourceTitle "playchess.com"]
[Source "ChessBase"]
[SourceQuality "1"]
[TimeControl "5400+30"]

{[%evp 9,67,15,3,-16,25,5,0,8,4,0,8,0,14,8,22,27,36,33,58,52,46,26,93,69,78,75,69,73,70,25,63,68,79,75,206,207,214,210,229,245,241,237,274,277,422,402,426,431,548,545,860,715,1605,1571,1445,694,1279,1180,5565,1558]} 1. e4 {[%emt 0:00:30]} c5 {[%emt 0:00:30]} 2. Nf3 {[%emt 0:00:30]} Nc6 3. Bb5 {[%emt 0:01:25]} e5 {[%emt 0:01:12]} 4. O-O {[%emt 0:00:46]} Bd6 {[%emt 0:00:44]} 5. Na3 {[%emt 0:04:17]} Nge7 {[%emt 0:03:01]} 6. c3 {[%emt 0:14:38] [#] B30: Sicilian: 2...Nc6 3 Bb5, lines without ...g6.} a6 $146 {[%emt 0:06:22]} ({Predecessor:} 6... O-O 7. d4 cxd4 8. cxd4 exd4 9. Nxd4 Qc7 10. h3 a6 11. Be2 Nxd4 12. Qxd4 Be5 {½-½ (21) Bodi,T (2384)-Mendonca,L (2538) Budapest 2021}) 7. Be2 {[%emt 0:09:49]} (7. Nc4 $5 {[%cal Rc4d6]} Bc7 8. Bxc6 Nxc6 9. d4 $11) 7... O-O {[%emt 0:08:23]} 8. d4 {[%emt 0:03:51] The position is equal.} cxd4 {[%emt 0:00:25]} 9. cxd4 {[%emt 0:00:16]} exd4 {[%emt 0:00:49]} 10. Nc2 {[%emt 0:00:35]} Bc5 {[%emt 0:07:04]} 11. Ncxd4 {[%emt 0:03:58]} d5 {[%emt 0:00:48]} 12. Nxc6 {[%emt 0:05:39]} bxc6 {[%emt 0:00:39]} 13. Qc2 {[%emt 0:00:04]} Bb6 {[%emt 0:03:53]} 14. Bd3 {[%emt 0:04:36]} h6 {[%emt 0:02:27]} 15. b3 {[%emt 0:01:23]} Bb7 {[%emt 0:12:50]} (15... Bg4 $11) 16. Ba3 {[%emt 0:07:53]} c5 {[%emt 0:01:18]} 17. Rad1 {[%emt 0:01:25] White is more active.} Qc7 {[%emt 0:01:54]} 18. exd5 {[%emt 0:00:12]} Nxd5 {[%emt 0:00:27][%cal Be7d5,Bd5f4,Bf4h3][%mdl 32]} 19. Bh7+ {[%emt 0:05:54]} Kh8 {[%emt 0:00:02]} 20. Be4 {[%emt 0:00:10]} Nf4 {[%emt 0:03:53]} 21. Bb2 {[%emt 0:04:30] Black must now prevent Be5.} Rae8 {[%emt 0:02:05] [#] Against Be5. A mistake that costs the game.} (21... Bxe4 $16 22. Qxe4 Ne6) 22. Be5 $1 $18 {[%emt 0:03:23][%mdl 512]} Rxe5 {[%emt 0:12:33]} 23. Nxe5 {[%emt 0:00:21][%cal Bf3e5,Be5c4,Bc4d6][%mdl 32]} Bc8 {[%emt 0:00:01]} 24. Nc4 {[%emt 0:03:19]} Ba7 {[%emt 0:00:02]} 25. g3 {[%emt 0:02:43]} Nh3+ {[%emt 0:03:54]} 26. Kh1 {[%emt 0:00:47]} f5 {[%emt 0:00:07]} (26... Ng5 $142 27. f3 Bb8) 27. Bg2 {[%emt 0:04:28]} f4 {[%emt 0:00:01]} 28. Qg6 {[%emt 0:03:32] Inhibits Bg4. White is clearly winning.} Bb8 {[%emt 0:19:17]} 29. Nd6 {[%emt 0:04:29]} ({Less strong is} 29. Be4 Ng5 $16) 29... Ng5 {[%emt 0:00:15] aiming for ...f3.} 30. Rfe1 {[%emt 0:02:49]} Bg4 {[%emt 0:04:16]} 31. Re8 {[%emt 0:01:42]} Rxe8 {[%emt 0:00:51]} 32. Qxe8+ {[%emt 0:00:02]} Kh7 {[%emt 0:00:01] [#]} 33. Bd5 $1 {[%emt 0:01:19] Threatening mate with Bg8+.} h5 {[%emt 0:00:02] [#]} (33... Be6 34. Bxe6) 34. f3 {[%emt 0:01:06] Weighted Error Value: White=0.06 (flawless) /Black=0.33} (34. gxf4 $142 $1 Bf3+ 35. Bxf3 Nxf3 36. Rd5 Qxd6 37. Rxd6 Bxd6 38. Qxh5+ Kg8 39. Qd5+ Kh8 40. Qxd6) 1-0

[Event "New York Summer GM-A 2022"]
[Site "New York"]
[Date "2022.07.09"]
[Round "4.1"]
[White "Zhou, Liran"]
[Black "Song, Michael"]
[Result "1/2-1/2"]
[ECO "C40"]
[WhiteElo "2393"]
[BlackElo "2409"]
[Annotator "RC"]
[PlyCount "105"]
[EventDate "2022.07.08"]
[EventType "tourn"]
[EventCountry "USA"]
[SourceTitle "playchess.com"]
[Source "ChessBase"]
[SourceQuality "1"]
[TimeControl "5400+30"]

1. e4 {[%emt 0:05:11]} e5 {[%emt 0:00:08]} 2. Nf3 {[%emt 0:00:12]} f5 {[%emt 0:04:56]} 3. Nxe5 {[%emt 0:07:15]} Nf6 {[%emt 0:00:55]} 4. Bc4 {[%emt 0:04:36]} Qe7 {[%emt 0:02:23]} 5. d4 {[%emt 0:03:06]} Nc6 {[%emt 0:04:54]} 6. Bf7+ {[%emt 0:09:23]} Kd8 {[%emt 0:00:23]} 7. O-O {[%emt 0:08:57]} Nxe5 {[%emt 0:04:54]} 8. dxe5 {[%emt 0:00:06]} Qxe5 {[%emt 0:00:21]} 9. exf5 {[%emt 0:02:25]} Bd6 {[%emt 0:03:01]} 10. g3 {[%emt 0:01:15]} Qxf5 {[%emt 0:00:32]} 11. Nc3 {[%emt 0:09:50]} b6 {[%emt 0:04:25]} 12. Be3 {[%emt 0:13:51]} Bb7 {[%emt 0:11:35]} 13. Bd4 {[%emt 0:01:10]} Bf3 {[%emt 0:18:18]} 14. Qd3 {[%emt 0:00:11]} Qxd3 {[%emt 0:00:17]} 15. cxd3 {[%emt 0:00:08]} Rf8 {[%emt 0:00:46]} 16. Bb3 {[%emt 0:09:43]} Bc5 {[%emt 0:12:47]} 17. Be5 {[%emt 0:06:00]} d6 {[%emt 0:02:33]} 18. d4 {[%emt 0:00:19]} dxe5 {[%emt 0:00:47]} 19. dxc5 {[%emt 0:00:07]} Nd7 {[%emt 0:02:34]} 20. cxb6 {[%emt 0:01:31]} axb6 {[%emt 0:00:02]} 21. Rfe1 {[%emt 0:03:33]} c6 {[%emt 0:01:28]} 22. Re3 {[%emt 0:03:12]} Kc7 {[%emt 0:04:09]} 23. Rc1 {[%emt 0:01:58]} g6 {[%emt 0:02:45]} 24. Nb5+ {[%emt 0:02:51]} Kb7 {[%emt 0:00:54]} 25. Nd6+ {[%emt 0:00:40]} Kc7 {[%emt 0:00:42]} 26. Nf7 {[%emt 0:00:46]} e4 {[%emt 0:02:37]} 27. Ng5 {[%emt 0:00:12]} Nc5 {[%emt 0:00:17]} 28. Bc2 {[%emt 0:01:46]} Rf5 {[%emt 0:04:35]} 29. h4 {[%emt 0:03:40]} h6 {[%emt 0:04:17]} 30. Nxe4 {[%emt 0:00:56]} Bxe4 {[%emt 0:00:09]} 31. Bxe4 {[%emt 0:00:04]} Nxe4 {[%emt 0:00:18]} 32. Rxe4 {[%emt 0:00:05]} Rxa2 {[%emt 0:00:05]} 33. Rc2 {[%emt 0:01:09]} Kd6 {[%emt 0:00:37]} 34. Rce2 {[%emt 0:00:28]} Kd5 {[%emt 0:00:56]} 35. Re8 {[%emt 0:00:37]} Ra1+ {[%emt 0:01:52]} 36. Kg2 {[%emt 0:00:05]} Rf6 {[%emt 0:00:06]} 37. R8e5+ {[%emt 0:00:47]} Kd6 {[%emt 0:01:32]} 38. f4 {[%emt 0:00:18]} Rd1 {[%emt 0:00:10]} 39. h5 {[%emt 0:00:40]} gxh5 {[%emt 0:00:48]} 40. Rxh5 {[%emt 0:00:04]} b5 {[%emt 0:00:47]} 41. Rhe5 {[%emt 0:00:54]} c5 {[%emt 0:02:41]} 42. Re8 {[%emt 0:01:29]} Rb1 {[%emt 0:00:04]} 43. Ra8 {[%emt 0:00:00]} Kd5 {[%emt 0:00:32]} 44. Rc8 {[%emt 0:00:05]} Kd4 {[%emt 0:01:17]} 45. Rd2+ {[%emt 0:00:48]} Ke3 {[%emt 0:00:09]} 46. Rc2 {[%emt 0:00:20]} c4 {[%emt 0:00:29]} 47. Rc5 {[%emt 0:00:40]} Rb6 {[%emt 0:01:14]} 48. Re5+ {[%emt 0:00:13]} Kd3 {[%emt 0:00:01]} 49. Rce2 {[%emt 0:00:07]} b4 {[%emt 0:01:07]} 50. R5e3+ {[%emt 0:00:28]} Kd4 {[%emt 0:00:01]} 51. Re4+ {[%emt 0:00:16]} Kd3 {[%emt 0:00:18]} 52. R4e3+ {[%emt 0:00:41]} Kd4 {[%emt 0:00:05]} 53. Re4+ {[%emt 0:00:12]} 1/2-1/2

[Event "New York Summer GM-A 2022"]
[Site "New York"]
[Date "2022.07.09"]
[Round "4.2"]
[White "Ostrovskiy, Aleksandr"]
[Black "Dragun, Kamil"]
[Result "0-1"]
[ECO "B42"]
[WhiteElo "2392"]
[BlackElo "2563"]
[Annotator "TA"]
[PlyCount "64"]
[EventDate "2022.07.08"]
[EventType "tourn"]
[EventCountry "USA"]
[SourceTitle "playchess.com"]
[Source "ChessBase"]
[SourceQuality "1"]
[TimeControl "5400+30"]

{[%evp 12,63,27,26,41,27,31,46,27,27,30,35,31,27,34,22,23,23,36,12,15,13,25,16,21,0,16,0,0,0,0,0,0,0,0,0,0,-31,-31,-34,-23,-12,-20,-6,0,22,15,0,0,-29997,-29998,-29998,-29999,-29999]} 1. e4 {[%emt 0:03:22]} c5 {[%emt 0:00:10]} 2. Nf3 {[%emt 0:00:03]} e6 {[%emt 0:00:09]} 3. d4 {[%emt 0:00:25]} cxd4 {[%emt 0:00:05]} 4. Nxd4 {[%emt 0:00:02]} a6 {[%emt 0:00:14]} 5. Bd3 {[%emt 0:00:55]} Bc5 {[%emt 0:00:20]} 6. Nb3 {[%emt 0:00:07]} Ba7 {[%emt 0:00:17]} 7. Qe2 {[%emt 0:00:29] 7.Qe2 is better than 7.0-0.} Ne7 {[%emt 0:00:09] B42: Sicilian: Kan Variation: 5 Bd3.} 8. O-O {[%emt 0:05:29]} O-O {[%emt 0:00:41]} 9. Be3 {[%emt 0:01:13] is the legacy move (9.c4).} d6 {[%emt 0:00:42] White is slightly better.} 10. c4 {[%emt 0:00:25]} Nbc6 {[%emt 0:00:49]} 11. Nc3 {[%emt 0:00:45]} e5 {[%emt 0:06:02]} 12. Bxa7 {[%emt 0:06:12]} Rxa7 {[%emt 0:00:44]} 13. Qe3 {[%emt 0:00:17]} Be6 {[%emt 0:08:10]} 14. Rfd1 {[%emt 0:00:55]} Qb8 {[%emt 0:06:44][%cal Ob7b5]} 15. Bf1 {[%emt 0:10:31]} b6 {[%emt 0:08:30] [#]} 16. Rac1 $146 {[%emt 0:09:01]} ({Predecessor:} 16. Rd2 Rd8 17. Rad1 Rb7 18. Nd5 a5 19. Nc3 Ra7 20. Nb5 Rad7 21. Na1 f5 22. exf5 Nxf5 {½-½ (32) Motylev,A (2676)-Andreikin,D (2706) Nizhnij Novgorod 2013}) 16... f5 {[%emt 0:05:37]} 17. exf5 {[%emt 0:02:03]} Nxf5 {[%emt 0:02:25]} 18. Qe4 {[%emt 0:02:01]} Nce7 {[%emt 0:11:13]} 19. Nd5 {[%emt 0:08:11]} Ng6 {[%emt 0:06:20]} 20. g3 {[%emt 0:05:48]} Raf7 {[%emt 0:01:23]} 21. Rd2 {[%emt 0:02:32]} a5 {[%emt 0:05:56][%cal Ba6a5,Ba5a4][%mdl 32]} 22. Bg2 {[%emt 0:05:01]} a4 {[%emt 0:03:01]} 23. Na1 {[%emt 0:00:57]} Nd4 {[%emt 0:00:06][%cal Oe6h3]} 24. Ne3 {[%emt 0:07:32] [#]} ({Don't play} 24. Rxd4 Bf5 25. Qe3 exd4 26. Qxd4 b5 $15) (24. Qe3 $5 {[%cal Rd2d4]}) 24... Bh3 $1 {[%emt 0:19:35]} 25. Bxh3 {[%emt 0:14:35]} Nf3+ {[%emt 0:00:06]} 26. Kh1 {[%emt 0:00:27][%cal Oh3e6] aiming for Be6!} Nxd2 {[%emt 0:00:06]} 27. Qd5 $132 {[%emt 0:00:03][%mdl 2048] [#] Threatens to win with Be6. White puts up resistance} Kh8 $1 {[%emt 0:08:17]} 28. Qxd2 {[%emt 0:00:42] Hoping for Nd1.} Rxf2 {[%emt 0:00:02]} 29. Qb4 {[%emt 0:08:20]} ({But not} 29. Qd5 Ne7 30. Qd3 b5 31. cxb5 Rxb2 $15) 29... Qb7+ {[%emt 0:02:10]} 30. Bg2 $2 {[%emt 0:00:34][%mdl 8192] [#]} (30. Kg1 $11) 30... Qxg2+ $3 {[%emt 0:00:32][%mdl 576] Remove Defender, Deflection, Back Rank. Black mates.} 31. Nxg2 {[%emt 0:00:26]} Rf1+ {[%emt 0:00:04][%mdl 64] Back Rank} 32. Rxf1 {[%emt 0:00:03]} Rxf1# {[%emt 0:00:04] Weighted Error Value: White=0.23 (precise) /Black=0.02 (flawless)} 0-1

[Event "New York Summer GM-A 2022"]
[Site "New York"]
[Date "2022.07.09"]
[Round "4.4"]
[White "Lu, Maximillian"]
[Black "Khamrakulov, Djurabek"]
[Result "0-1"]
[ECO "D20"]
[WhiteElo "2398"]
[BlackElo "2492"]
[Annotator "RC"]
[PlyCount "72"]
[EventDate "2022.07.08"]
[EventType "tourn"]
[EventCountry "USA"]
[SourceTitle "playchess.com"]
[Source "ChessBase"]
[SourceQuality "1"]
[TimeControl "5400+30"]

1. d4 {[%emt 0:00:30]} d5 {[%emt 0:14:07]} 2. c4 {[%emt 0:00:10]} dxc4 {[%emt 0:00:05]} 3. e4 {[%emt 0:00:22]} Nf6 {[%emt 0:00:04]} 4. e5 {[%emt 0:01:02]} Nd5 {[%emt 0:00:01]} 5. Bxc4 {[%emt 0:00:22]} Bf5 {[%emt 0:00:03]} 6. Qb3 {[%emt 0:11:18]} c6 {[%emt 0:02:36]} 7. Nc3 {[%emt 0:07:55]} e6 {[%emt 0:01:03]} 8. Nxd5 {[%emt 0:14:20]} exd5 {[%emt 0:08:57]} 9. Bd3 {[%emt 0:13:42]} Bxd3 {[%emt 0:01:31]} 10. Qxd3 {[%emt 0:00:02]} Bb4+ {[%emt 0:04:31]} 11. Bd2 {[%emt 0:01:56]} Bxd2+ {[%emt 0:01:41]} 12. Qxd2 {[%emt 0:00:03]} O-O {[%emt 0:01:00]} 13. Ne2 {[%emt 0:00:20]} Na6 {[%emt 0:10:15]} 14. O-O {[%emt 0:04:08]} Nc7 {[%emt 0:00:31]} 15. b4 {[%emt 0:04:28]} Ne6 {[%emt 0:06:59]} 16. Rab1 {[%emt 0:02:25]} Rc8 {[%emt 0:02:06]} 17. Rb3 {[%emt 0:00:35]} f5 {[%emt 0:05:10]} 18. exf6 {[%emt 0:07:47]} Qxf6 {[%emt 0:03:34]} 19. f4 {[%emt 0:02:30]} Ng5 {[%emt 0:05:33]} 20. Re3 {[%emt 0:13:17]} Ne4 {[%emt 0:00:38]} 21. Qd3 {[%emt 0:00:01]} Nd6 {[%emt 0:01:38]} 22. Ng3 {[%emt 0:00:18]} Rce8 {[%emt 0:03:12]} 23. f5 {[%emt 0:03:54]} Rxe3 {[%emt 0:02:39]} 24. Qxe3 {[%emt 0:00:02]} Re8 {[%emt 0:00:27]} 25. Qf4 {[%emt 0:00:51]} Ne4 {[%emt 0:00:38]} 26. Qe3 {[%emt 0:03:09]} Nd6 {[%emt 0:08:52]} 27. Qf4 {[%emt 0:00:01]} Nb5 {[%emt 0:00:17]} 28. Rd1 {[%emt 0:02:12]} Qe7 {[%emt 0:00:02]} 29. h4 {[%emt 0:04:12]} Qe3+ {[%emt 0:02:31]} 30. Qf2 {[%emt 0:00:01]} Kf7 {[%emt 0:01:33]} 31. Rd2 {[%emt 0:00:38]} Nc3 {[%emt 0:01:02]} 32. Kh2 {[%emt 0:02:53]} Qxf2 {[%emt 0:02:20]} 33. Rxf2 {[%emt 0:00:02]} Re3 {[%emt 0:00:35]} 34. Rf4 {[%emt 0:01:15]} Nxa2 {[%emt 0:01:14]} 35. f6 {[%emt 0:00:05]} g6 {[%emt 0:01:12]} 36. Nf1 {[%emt 0:01:09]} Re6 {[%emt 0:00:26]} 0-1

[Event "New York Summer GM-A 2022"]
[Site "New York"]
[Date "2022.07.09"]
[Round "4.5"]
[White "Korley, Kassa"]
[Black "Kaliksteyn, Alexander"]
[Result "1/2-1/2"]
[ECO "E04"]
[WhiteElo "2421"]
[BlackElo "2380"]
[Annotator "RC"]
[PlyCount "109"]
[EventDate "2022.07.08"]
[EventType "tourn"]
[EventCountry "USA"]
[SourceTitle "playchess.com"]
[Source "ChessBase"]
[SourceQuality "1"]
[TimeControl "5400+30"]

1. Nf3 {[%emt 0:00:03]} d5 {[%emt 0:03:50]} 2. g3 {[%emt 0:00:02]} c5 {[%emt 0:00:16]} 3. Bg2 {[%emt 0:00:03]} Nc6 {[%emt 0:00:21]} 4. d4 {[%emt 0:00:02]} Nf6 {[%emt 0:00:24]} 5. O-O {[%emt 0:00:04]} e6 {[%emt 0:00:20]} 6. c4 {[%emt 0:04:40]} dxc4 {[%emt 0:00:31]} 7. dxc5 {[%emt 0:00:10]} Qxd1 {[%emt 0:00:50]} 8. Rxd1 {[%emt 0:00:04]} Bxc5 {[%emt 0:00:05]} 9. Nfd2 {[%emt 0:02:41]} Nd4 {[%emt 0:02:48]} 10. Nc3 {[%emt 0:00:05]} Nd5 {[%emt 0:00:09]} 11. Nxd5 {[%emt 0:07:28]} exd5 {[%emt 0:00:09]} 12. Bxd5 {[%emt 0:00:12]} Bg4 {[%emt 0:19:46]} 13. Bxb7 {[%emt 0:45:01]} Rd8 {[%emt 0:03:57]} 14. Kg2 {[%emt 0:00:14]} Bxe2 {[%emt 0:03:33]} 15. Re1 {[%emt 0:03:54]} O-O {[%emt 0:00:30]} 16. Ba6 {[%emt 0:07:56]} c3 {[%emt 0:13:59]} 17. Bxe2 {[%emt 0:01:52]} cxd2 {[%emt 0:03:07]} 18. Bxd2 {[%emt 0:00:03]} Nc2 {[%emt 0:00:06]} 19. Bc3 {[%emt 0:00:25]} Bd4 {[%emt 0:10:58]} 20. Bxd4 {[%emt 0:01:56]} Nxe1+ {[%emt 0:00:11]} 21. Rxe1 {[%emt 0:00:03]} Rxd4 {[%emt 0:00:05]} 22. Bf3 {[%emt 0:00:10]} Rd2 {[%emt 0:01:00]} 23. Re7 {[%emt 0:00:06]} g6 {[%emt 0:01:11]} 24. Rxa7 {[%emt 0:00:34]} Rc8 {[%emt 0:01:12]} 25. Be4 {[%emt 0:03:26]} f5 {[%emt 0:08:27]} 26. Ra8 {[%emt 0:00:03]} Rxa8 {[%emt 0:00:05]} 27. Bxa8 {[%emt 0:00:03]} Rxb2 {[%emt 0:00:06]} 28. Bd5+ {[%emt 0:00:09]} Kg7 {[%emt 0:00:07]} 29. h4 {[%emt 0:00:01]} Kf6 {[%emt 0:00:24]} 30. Bb3 {[%emt 0:00:17]} h6 {[%emt 0:00:33]} 31. Kf3 {[%emt 0:00:19]} Ke5 {[%emt 0:02:03]} 32. Ke3 {[%emt 0:00:10]} Rb1 {[%emt 0:00:25]} 33. Bf7 {[%emt 0:04:58]} g5 {[%emt 0:00:30]} 34. hxg5 {[%emt 0:00:04]} hxg5 {[%emt 0:00:05]} 35. Bb3 {[%emt 0:00:17]} Rb2 {[%emt 0:04:22]} 36. Bc4 {[%emt 0:04:14]} f4+ {[%emt 0:02:13]} 37. gxf4+ {[%emt 0:00:07]} gxf4+ {[%emt 0:00:03]} 38. Kf3 {[%emt 0:00:12]} Rc2 {[%emt 0:00:17]} 39. Bb3 {[%emt 0:01:51]} Rc3+ {[%emt 0:00:29]} 40. Kg2 {[%emt 0:04:33]} Ke4 {[%emt 0:00:13]} 41. Bf7 {[%emt 0:01:18]} Rc6 {[%emt 0:07:09]} 42. Bh5 {[%emt 0:00:07]} Ra6 {[%emt 0:00:38]} 43. Bf7 {[%emt 0:01:44]} Ra7 {[%emt 0:00:15]} 44. Bg6+ {[%emt 0:00:53]} Ke5 {[%emt 0:00:05]} 45. Bh5 {[%emt 0:00:56]} Rxa2 {[%emt 0:00:13]} 46. Bf3 {[%emt 0:00:07]} Ra7 {[%emt 0:01:04]} 47. Bc6 {[%emt 0:00:09]} Rc7 {[%emt 0:00:28]} 48. Ba8 {[%emt 0:00:09]} Kf5 {[%emt 0:02:32]} 49. Bd5 {[%emt 0:11:05]} Rg7+ {[%emt 0:01:07]} 50. Kf3 {[%emt 0:00:00]} Rd7 {[%emt 0:00:16]} 51. Be4+ {[%emt 0:00:00]} Kg5 {[%emt 0:00:06]} 52. Kg2 {[%emt 0:00:00]} Rd4 {[%emt 0:00:29]} 53. Bb7 {[%emt 0:00:00]} Rd3 {[%emt 0:00:21]} 54. Be4 {[%emt 0:00:00]} Rc3 {[%emt 0:00:14]} 55. Bf3 {[%emt 0:00:00]} 1/2-1/2